[Event "December 12 Late 2023"]
[Site "https://www.chess.com"]
[Date "2023.12.12"]
[Round "2"]
[White "Estrada Nieto, Julian"]
[Black "Demchenko, Anton"]
[Result "1/2-1/2"]
[Board "34"]
[TimeControl "180+1"]
[WhiteFideId "5101018"]
[BlackFideId "4160258"]
[WhiteElo "2540"]
[BlackElo "2890"]
[WhiteTeam "ESP"]
[BlackTeam "SLO"]
[WhiteClock "0:00:07"]
[BlackClock "0:00:02"]

1. e4 {[%clk 0:03:00]}  e5 {[%clk 0:02:59]} 2. Nf3 {[%clk 0:02:59]}  Nc6 {[%clk 0:03:00]} 3. Bb5 {[%clk 0:03:00]}  a6 {[%clk 0:03:00]} 4. Ba4 {[%clk 0:03:00]}  d6 {[%clk 0:02:59]} 5. Bxc6+ {[%clk 0:02:59]}  bxc6 {[%clk 0:02:59]} 6. d4 {[%clk 0:03:00]}  f6 {[%clk 0:03:00]} 7. Nc3 {[%clk 0:02:59]}  Ne7 {[%clk 0:03:00]} 8. Be3 {[%clk 0:02:59]}  Be6 {[%clk 0:02:57]} 9. Qe2 {[%clk 0:02:58]}  Ng6 {[%clk 0:02:53]} 10. O-O-O {[%clk 0:02:58]}  Be7 {[%clk 0:02:53]} 11. h4 {[%clk 0:02:54]}  h5 {[%clk 0:02:52]} 12. dxe5 {[%clk 0:02:50]}  fxe5 {[%clk 0:02:52]} 13. Ng5 {[%clk 0:02:46]}  Bxg5 {[%clk 0:02:52]} 14. Bxg5 {[%clk 0:02:46]}  Qb8 {[%clk 0:02:49]} 15. g3 {[%clk 0:02:37]}  Qb4 {[%clk 0:02:49]} 16. Rdf1 {[%clk 0:02:21]}  Bc4 {[%clk 0:02:42]} 17. Qd1 {[%clk 0:02:12]}  Rb8 {[%clk 0:02:36]} 18. Re1 {[%clk 0:01:59]}  Qxb2+ {[%clk 0:02:26]} 19. Kd2 {[%clk 0:01:59]}  Qb6 {[%clk 0:02:22]} 20. Be3 {[%clk 0:01:55]}  Qa5 {[%clk 0:02:20]} 21. Qf3 {[%clk 0:01:48]}  Be6 {[%clk 0:02:14]} 22. Rb1 {[%clk 0:01:44]}  Rd8 {[%clk 0:01:57]} 23. Bg5 {[%clk 0:01:41]}  Rc8 {[%clk 0:01:31]} 24. Rb7 {[%clk 0:01:38]}  Kd7 {[%clk 0:01:25]} 25. Qd3 {[%clk 0:01:19]}  Rb8 {[%clk 0:01:09]} 26. Rhb1 {[%clk 0:01:18]}  Rxb7 {[%clk 0:01:09]} 27. Rxb7 {[%clk 0:01:18]}  Qc5 {[%clk 0:00:57]} 28. Be3 {[%clk 0:01:14]}  Qc4 {[%clk 0:00:58]} 29. f4 {[%clk 0:01:01]}  exf4 {[%clk 0:00:43]} 30. Bxf4 {[%clk 0:01:01]}  Qxd3+ {[%clk 0:00:39]} 31. cxd3 {[%clk 0:01:01]}  Rf8 {[%clk 0:00:34]} 32. Ke3 {[%clk 0:01:01]}  c5 {[%clk 0:00:15]} 33. Ra7 {[%clk 0:00:50]}  Rb8 {[%clk 0:00:14]} 34. Rxa6 {[%clk 0:00:50]}  Rb2 {[%clk 0:00:14]} 35. a4 {[%clk 0:00:42]}  Nxf4 {[%clk 0:00:11]} 36. gxf4 {[%clk 0:00:41]}  Rh2 {[%clk 0:00:10]} 37. f5 {[%clk 0:00:41]}  Bf7 {[%clk 0:00:10]} 38. Nb5 {[%clk 0:00:38]}  Rh3+ {[%clk 0:00:08]} 39. Kd2 {[%clk 0:00:37]}  c4 {[%clk 0:00:08]} 40. d4 {[%clk 0:00:31]}  c3+ {[%clk 0:00:07]} 41. Nxc3 {[%clk 0:00:29]}  Rxh4 {[%clk 0:00:07]} 42. Ra7 {[%clk 0:00:23]}  Bc4 {[%clk 0:00:07]} 43. a5 {[%clk 0:00:19]}  Rh2+ {[%clk 0:00:07]} 44. Ke3 {[%clk 0:00:18]}  Rh3+ {[%clk 0:00:07]} 45. Kd2 {[%clk 0:00:18]}  h4 {[%clk 0:00:07]} 46. Ra8 {[%clk 0:00:17]}  Rd3+ {[%clk 0:00:06]} 47. Kc2 {[%clk 0:00:17]}  Rxd4 {[%clk 0:00:07]} 48. Rh8 {[%clk 0:00:15]}  Bd3+ {[%clk 0:00:07]} 49. Kd2 {[%clk 0:00:14]}  Ba6+ {[%clk 0:00:04]} 50. Kc2 {[%clk 0:00:13]}  Bd3+ {[%clk 0:00:04]} 51. Kb3 {[%clk 0:00:13]}  Bxe4 {[%clk 0:00:04]} 52. Nxe4 {[%clk 0:00:11]}  Rxe4 {[%clk 0:00:04]} 53. a6 {[%clk 0:00:11]}  Re3+ {[%clk 0:00:02]} 54. Kb4 {[%clk 0:00:11]}  c5+ {[%clk 0:00:02]} 55. Kb5 {[%clk 0:00:11]}  Rb3+ {[%clk 0:00:02]} 56. Ka5 {[%clk 0:00:11]}  Rb1 {[%clk 0:00:02]} 57. a7 {[%clk 0:00:10]}  Ra1+ {[%clk 0:00:03]} 58. Kb6 {[%clk 0:00:10]}  c4 {[%clk 0:00:03]} 59. a8=Q {[%clk 0:00:10]}  Rxa8 {[%clk 0:00:04]} 60. Rxa8 {[%clk 0:00:11]}  Ke7 {[%clk 0:00:03]} 61. Kb5 {[%clk 0:00:10]}  d5 {[%clk 0:00:03]} 62. Kc5 {[%clk 0:00:10]}  Kf6 {[%clk 0:00:04]} 63. Kxd5 {[%clk 0:00:10]}  Kxf5 {[%clk 0:00:05]} 64. Kxc4 {[%clk 0:00:10]}  Kg4 {[%clk 0:00:04]} 65. Rh8 {[%clk 0:00:11]}  h3 {[%clk 0:00:05]} 66. Kd3 {[%clk 0:00:11]}  Kg3 {[%clk 0:00:05]} 67. Ke2 {[%clk 0:00:11]}  Kg2 {[%clk 0:00:04]} 68. Rh5 {[%clk 0:00:10]}  h2 {[%clk 0:00:04]} 69. Rg5+ {[%clk 0:00:10]}  Kh1 {[%clk 0:00:04]} 70. Rh5 {[%clk 0:00:08]}  g5 {[%clk 0:00:02]} 71. Rxg5 {[%clk 0:00:07]} 1/2-1/2

[Event "December 12 Late 2023"]
[Site "https://www.chess.com"]
[Date "2023.12.12"]
[Round "2"]
[White "Kovalev, Vladislav"]
[Black "Shapiro, Viktor"]
[Result "1-0"]
[Board "35"]
[TimeControl "180+1"]
[WhiteFideId "13504398"]
[BlackFideId "4175700"]
[WhiteElo "2889"]
[BlackElo "2538"]
[WhiteTeam "FID"]
[BlackTeam "RUS"]
[WhiteClock "0:00:09"]
[BlackClock "0:00:01"]

1. e4 {[%clk 0:02:58]}  Nf6 {[%clk 0:02:59]} 2. e5 {[%clk 0:02:58]}  Nd5 {[%clk 0:03:00]} 3. d4 {[%clk 0:02:59]}  d6 {[%clk 0:03:00]} 4. Nf3 {[%clk 0:02:59]}  Bg4 {[%clk 0:02:59]} 5. Be2 {[%clk 0:02:59]}  e6 {[%clk 0:02:59]} 6. h3 {[%clk 0:02:59]}  Bh5 {[%clk 0:02:59]} 7. O-O {[%clk 0:02:59]}  Be7 {[%clk 0:03:00]} 8. c4 {[%clk 0:03:00]}  Nb6 {[%clk 0:03:00]} 9. Nc3 {[%clk 0:03:00]}  O-O {[%clk 0:02:59]} 10. Be3 {[%clk 0:03:01]}  N8d7 {[%clk 0:02:57]} 11. exd6 {[%clk 0:02:57]}  cxd6 {[%clk 0:02:57]} 12. b3 {[%clk 0:02:50]}  a5 {[%clk 0:02:55]} 13. Nb5 {[%clk 0:02:41]}  a4 {[%clk 0:02:48]} 14. Nd2 {[%clk 0:02:32]}  Bg6 {[%clk 0:02:43]} 15. Bf3 {[%clk 0:02:32]}  d5 {[%clk 0:02:40]} 16. c5 {[%clk 0:02:31]}  Nc8 {[%clk 0:02:10]} 17. b4 {[%clk 0:02:32]}  Bg5 {[%clk 0:02:02]} 18. Qe2 {[%clk 0:02:23]}  Bxe3 {[%clk 0:02:01]} 19. Qxe3 {[%clk 0:02:24]}  Ne7 {[%clk 0:02:01]} 20. Nd6 {[%clk 0:01:55]}  Nf5 {[%clk 0:01:38]} 21. Nxf5 {[%clk 0:01:55]}  Bxf5 {[%clk 0:01:38]} 22. Nb1 {[%clk 0:01:48]}  Bxb1 {[%clk 0:01:32]} 23. Raxb1 {[%clk 0:01:48]}  b5 {[%clk 0:01:22]} 24. Be2 {[%clk 0:01:39]}  Rb8 {[%clk 0:01:18]} 25. Rbc1 {[%clk 0:01:34]}  Qc7 {[%clk 0:01:17]} 26. c6 {[%clk 0:01:28]}  Nf6 {[%clk 0:01:13]} 27. Bd3 {[%clk 0:01:13]}  Rb6 {[%clk 0:01:10]} 28. Qe5 {[%clk 0:00:46]}  Rc8 {[%clk 0:01:04]} 29. Rc5 {[%clk 0:00:35]}  Rxc6 {[%clk 0:00:56]} 30. Qxc7 {[%clk 0:00:33]}  R6xc7 {[%clk 0:00:54]} 31. Rfc1 {[%clk 0:00:18]}  Rxc5 {[%clk 0:00:49]} 32. dxc5 {[%clk 0:00:16]}  d4 {[%clk 0:00:19]} 33. Bxb5 {[%clk 0:00:12]}  Nd5 {[%clk 0:00:19]} 34. a3 {[%clk 0:00:10]}  Nc3 {[%clk 0:00:19]} 35. Bc4 {[%clk 0:00:09]}  e5 {[%clk 0:00:17]} 36. Kf1 {[%clk 0:00:09]}  Kf8 {[%clk 0:00:17]} 37. Ke1 {[%clk 0:00:07]}  f6 {[%clk 0:00:18]} 38. Kd2 {[%clk 0:00:08]}  Ke7 {[%clk 0:00:17]} 39. Kd3 {[%clk 0:00:08]}  Rd8 {[%clk 0:00:17]} 40. f3 {[%clk 0:00:08]}  f5 {[%clk 0:00:17]} 41. Re1 {[%clk 0:00:07]}  e4+ {[%clk 0:00:17]} 42. fxe4 {[%clk 0:00:08]}  fxe4+ {[%clk 0:00:17]} 43. Rxe4+ {[%clk 0:00:09]}  Nxe4 {[%clk 0:00:17]} 44. Kxe4 {[%clk 0:00:10]}  g5 {[%clk 0:00:12]} 45. b5 {[%clk 0:00:10]}  h5 {[%clk 0:00:11]} 46. b6 {[%clk 0:00:10]}  Rb8 {[%clk 0:00:09]} 47. Kxd4 {[%clk 0:00:10]}  Rd8+ {[%clk 0:00:09]} 48. Bd5 {[%clk 0:00:10]}  Rb8 {[%clk 0:00:07]} 49. Kc4 {[%clk 0:00:10]}  g4 {[%clk 0:00:07]} 50. hxg4 {[%clk 0:00:11]}  hxg4 {[%clk 0:00:08]} 51. Kb5 {[%clk 0:00:11]}  Rd8 {[%clk 0:00:08]} 52. b7 {[%clk 0:00:09]}  Kd7 {[%clk 0:00:08]} 53. Kb6 {[%clk 0:00:10]}  Rb8 {[%clk 0:00:05]} 54. Be4 {[%clk 0:00:08]}  g3 {[%clk 0:00:04]} 55. c6+ {[%clk 0:00:08]}  Kd6 {[%clk 0:00:01]} 56. c7 {[%clk 0:00:09]} 1-0

[Event "December 12 Late 2023"]
[Site "https://www.chess.com"]
[Date "2023.12.12"]
[Round "2"]
[White "Szpar, Milosz"]
[Black "Asish Panda"]
[Result "1-0"]
[Board "36"]
[TimeControl "180+1"]
[WhiteFideId "1184989"]
[BlackFideId "45012458"]
[WhiteElo "2886"]
[BlackElo "2538"]
[WhiteTeam "POL"]
[BlackTeam "IND"]
[WhiteClock "0:00:03"]
[BlackClock "0:00:02"]

1. Nf3 {[%clk 0:02:51]}  d5 {[%clk 0:02:58]} 2. e3 {[%clk 0:02:50]}  Nf6 {[%clk 0:02:58]} 3. c4 {[%clk 0:02:51]}  e6 {[%clk 0:02:57]} 4. b3 {[%clk 0:02:48]}  c5 {[%clk 0:02:57]} 5. Bb2 {[%clk 0:02:47]}  Nc6 {[%clk 0:02:56]} 6. cxd5 {[%clk 0:02:47]}  exd5 {[%clk 0:02:56]} 7. Be2 {[%clk 0:02:48]}  d4 {[%clk 0:02:53]} 8. exd4 {[%clk 0:02:46]}  cxd4 {[%clk 0:02:53]} 9. Bb5 {[%clk 0:02:47]}  Bc5 {[%clk 0:02:50]} 10. Qe2+ {[%clk 0:02:47]}  Be6 {[%clk 0:02:48]} 11. Qe5 {[%clk 0:02:47]}  Bd6 {[%clk 0:02:32]} 12. Qxd4 {[%clk 0:02:44]}  O-O {[%clk 0:02:27]} 13. Bxc6 {[%clk 0:02:43]}  bxc6 {[%clk 0:02:26]} 14. O-O {[%clk 0:02:38]}  Bd5 {[%clk 0:02:22]} 15. Qh4 {[%clk 0:02:28]}  Bxf3 {[%clk 0:02:18]} 16. Bxf6 {[%clk 0:02:26]}  gxf6 {[%clk 0:02:15]} 17. gxf3 {[%clk 0:02:23]}  Kh8 {[%clk 0:02:13]} 18. Nc3 {[%clk 0:02:20]}  Be5 {[%clk 0:02:11]} 19. d4 {[%clk 0:02:09]}  Qxd4 {[%clk 0:02:08]} 20. Qxd4 {[%clk 0:02:05]}  Bxd4 {[%clk 0:02:09]} 21. Rac1 {[%clk 0:02:00]}  Rg8+ {[%clk 0:02:05]} 22. Kh1 {[%clk 0:02:00]}  Rae8 {[%clk 0:01:50]} 23. Ne4 {[%clk 0:01:57]}  Re6 {[%clk 0:01:42]} 24. Rfd1 {[%clk 0:01:53]}  Be5 {[%clk 0:01:41]} 25. Nc5 {[%clk 0:01:49]}  Re7 {[%clk 0:01:33]} 26. Rd7 {[%clk 0:01:44]}  Rge8 {[%clk 0:01:20]} 27. Rcd1 {[%clk 0:01:43]}  Kg7 {[%clk 0:01:12]} 28. Kg2 {[%clk 0:01:42]}  Kg6 {[%clk 0:01:12]} 29. h3 {[%clk 0:01:34]}  h5 {[%clk 0:01:11]} 30. Kf1 {[%clk 0:01:33]}  Kf5 {[%clk 0:01:08]} 31. R7d3 {[%clk 0:01:18]}  Kg6 {[%clk 0:00:59]} 32. Re1 {[%clk 0:01:14]}  Bc7 {[%clk 0:00:46]} 33. Rc1 {[%clk 0:00:47]}  Bb6 {[%clk 0:00:36]} 34. Ne4 {[%clk 0:00:44]}  Re6 {[%clk 0:00:36]} 35. Rc4 {[%clk 0:00:33]}  f5 {[%clk 0:00:32]} 36. Nc3 {[%clk 0:00:20]}  Re1+ {[%clk 0:00:28]} 37. Kg2 {[%clk 0:00:20]}  R8e6 {[%clk 0:00:26]} 38. a4 {[%clk 0:00:18]}  Kg7 {[%clk 0:00:26]} 39. f4 {[%clk 0:00:14]}  Rg6+ {[%clk 0:00:21]} 40. Rg3 {[%clk 0:00:12]}  Rc1 {[%clk 0:00:15]} 41. Ne2 {[%clk 0:00:05]}  Rb1 {[%clk 0:00:12]} 42. b4 {[%clk 0:00:04]}  Rb2 {[%clk 0:00:12]} 43. Rxg6+ {[%clk 0:00:03]}  fxg6 {[%clk 0:00:12]} 44. Kf3 {[%clk 0:00:03]}  Rb3+ {[%clk 0:00:11]} 45. Kg2 {[%clk 0:00:02]}  Rb2 {[%clk 0:00:11]} 46. Kf1 {[%clk 0:00:03]}  Rb1+ {[%clk 0:00:11]} 47. Nc1 {[%clk 0:00:02]}  Bc7 {[%clk 0:00:09]} 48. Ke2 {[%clk 0:00:02]}  Bd6 {[%clk 0:00:08]} 49. Nd3 {[%clk 0:00:02]}  Rb3 {[%clk 0:00:08]} 50. Rxc6 {[%clk 0:00:02]}  Bf8 {[%clk 0:00:07]} 51. Rc7+ {[%clk 0:00:02]}  Kh6 {[%clk 0:00:07]} 52. b5 {[%clk 0:00:03]}  Ra3 {[%clk 0:00:07]} 53. Rxa7 {[%clk 0:00:03]}  Ra2+ {[%clk 0:00:06]} 54. Ke3 {[%clk 0:00:03]}  Ra3 {[%clk 0:00:07]} 55. Ra6 {[%clk 0:00:02]}  Bc5+ {[%clk 0:00:06]} 56. Ke2 {[%clk 0:00:03]}  Ra2+ {[%clk 0:00:06]} 57. Kd1 {[%clk 0:00:03]}  Ra1+ {[%clk 0:00:06]} 58. Kc2 {[%clk 0:00:03]}  Bd4 {[%clk 0:00:05]} 59. Kb3 {[%clk 0:00:03]}  Rb1+ {[%clk 0:00:05]} 60. Kc4 {[%clk 0:00:03]}  Bg7 {[%clk 0:00:04]} 61. a5 {[%clk 0:00:04]}  Ra1 {[%clk 0:00:03]} 62. Ne5 {[%clk 0:00:03]}  Ra2 {[%clk 0:00:03]} 63. b6 {[%clk 0:00:03]}  Rxf2 {[%clk 0:00:01]} 64. Kd5 {[%clk 0:00:03]}  Rd2+ {[%clk 0:00:01]} 65. Ke6 {[%clk 0:00:03]}  Rc2 {[%clk 0:00:02]} 66. Nf7+ {[%clk 0:00:03]}  Kh7 {[%clk 0:00:02]} 67. Ng5+ {[%clk 0:00:04]}  Kh6 {[%clk 0:00:03]} 68. b7 {[%clk 0:00:04]}  Re2+ {[%clk 0:00:04]} 69. Kf7 {[%clk 0:00:03]}  Rb2 {[%clk 0:00:02]} 70. Rxg6# {[%clk 0:00:03]} 1-0

[Event "December 12 Late 2023"]
[Site "https://www.chess.com"]
[Date "2023.12.12"]
[Round "2"]
[White "Davidson, Kevin"]
[Black "Kazakouski, Valery"]
[Result "0-1"]
[Board "41"]
[TimeControl "180+1"]
[WhiteFideId "2056810"]
[BlackFideId "13507443"]
[WhiteElo "2531"]
[BlackElo "2826"]
[WhiteTeam "USA"]
[BlackTeam "LTU"]
[WhiteClock "0:00:00"]
[BlackClock "0:01:13"]

1. e4 {[%clk 0:03:00]}  c5 {[%clk 0:02:59]} 2. Nf3 {[%clk 0:03:00]}  a6 {[%clk 0:03:00]} 3. c4 {[%clk 0:03:00]}  Nc6 {[%clk 0:02:59]} 4. d4 {[%clk 0:03:00]}  cxd4 {[%clk 0:03:00]} 5. Nxd4 {[%clk 0:03:01]}  e5 {[%clk 0:03:01]} 6. Nc2 {[%clk 0:03:01]}  Bc5 {[%clk 0:03:00]} 7. Nc3 {[%clk 0:03:01]}  Nf6 {[%clk 0:03:00]} 8. Be2 {[%clk 0:03:00]}  d6 {[%clk 0:03:00]} 9. O-O {[%clk 0:03:00]}  Be6 {[%clk 0:03:00]} 10. Be3 {[%clk 0:02:59]}  Bxe3 {[%clk 0:03:00]} 11. Nxe3 {[%clk 0:02:58]}  O-O {[%clk 0:02:59]} 12. Qd2 {[%clk 0:02:49]}  Qa5 {[%clk 0:02:50]} 13. Rfd1 {[%clk 0:02:31]}  Nd4 {[%clk 0:02:49]} 14. Nc2 {[%clk 0:02:07]}  Nc6 {[%clk 0:02:17]} 15. Rab1 {[%clk 0:01:46]}  Rfd8 {[%clk 0:02:07]} 16. b4 {[%clk 0:01:45]}  Qc7 {[%clk 0:02:07]} 17. Nd5 {[%clk 0:01:31]}  Bxd5 {[%clk 0:02:02]} 18. exd5 {[%clk 0:01:26]}  Ne7 {[%clk 0:01:59]} 19. Ne3 {[%clk 0:01:16]}  a5 {[%clk 0:01:59]} 20. bxa5 {[%clk 0:01:08]}  Nd7 {[%clk 0:01:59]} 21. Rb5 {[%clk 0:01:06]}  Ra7 {[%clk 0:01:52]} 22. Rdb1 {[%clk 0:01:05]}  Rda8 {[%clk 0:01:52]} 23. Qb2 {[%clk 0:00:54]}  Nc5 {[%clk 0:01:50]} 24. Qb4 {[%clk 0:00:51]}  Rxa5 {[%clk 0:01:47]} 25. Rxa5 {[%clk 0:00:45]}  Qxa5 {[%clk 0:01:47]} 26. Qb6 {[%clk 0:00:35]}  Qxa2 {[%clk 0:01:40]} 27. Bf1 {[%clk 0:00:19]}  Qa6 {[%clk 0:01:39]} 28. g3 {[%clk 0:00:17]}  Qxb6 {[%clk 0:01:38]} 29. Rxb6 {[%clk 0:00:16]}  Ra6 {[%clk 0:01:39]} 30. Rb5 {[%clk 0:00:16]}  f5 {[%clk 0:01:34]} 31. Bh3 {[%clk 0:00:15]}  g6 {[%clk 0:01:34]} 32. Nc2 {[%clk 0:00:10]}  Ra4 {[%clk 0:01:30]} 33. Nb4 {[%clk 0:00:09]}  Kf7 {[%clk 0:01:25]} 34. g4 {[%clk 0:00:07]}  Ra1+ {[%clk 0:01:13]} 35. Kg2 {[%clk 0:00:07]}  Rc1 {[%clk 0:01:14]} 36. gxf5 {[%clk 0:00:07]}  gxf5 {[%clk 0:01:14]} 37. Rb6 {[%clk 0:00:00]}  Rxc4 {[%clk 0:01:13]} 0-1

[Event "December 12 Late 2023"]
[Site "https://www.chess.com"]
[Date "2023.12.12"]
[Round "2"]
[White "Ghasi, Ameet K"]
[Black "Korchynskyi, Mykola"]
[Result "1-0"]
[Board "49"]
[TimeControl "180+1"]
[WhiteFideId "409200"]
[BlackFideId "34138005"]
[WhiteElo "2781"]
[BlackElo "2521"]
[WhiteTeam "ENG"]
[BlackTeam "UKR"]
[WhiteClock "0:00:07"]
[BlackClock "0:00:21"]

1. g3 {[%clk 0:03:00]}  d5 {[%clk 0:02:54]} 2. Bg2 {[%clk 0:02:59]}  Nf6 {[%clk 0:02:54]} 3. d3 {[%clk 0:02:58]}  e6 {[%clk 0:02:54]} 4. Nf3 {[%clk 0:02:56]}  Be7 {[%clk 0:02:53]} 5. Nbd2 {[%clk 0:02:53]}  O-O {[%clk 0:02:53]} 6. b3 {[%clk 0:02:53]}  b6 {[%clk 0:02:52]} 7. Bb2 {[%clk 0:02:51]}  Bb7 {[%clk 0:02:46]} 8. a3 {[%clk 0:02:50]}  Nbd7 {[%clk 0:02:40]} 9. O-O {[%clk 0:02:46]}  c5 {[%clk 0:02:39]} 10. e3 {[%clk 0:02:45]}  Rc8 {[%clk 0:02:38]} 11. Qe2 {[%clk 0:02:42]}  Qc7 {[%clk 0:02:37]} 12. c4 {[%clk 0:02:39]}  Rfd8 {[%clk 0:02:36]} 13. Rac1 {[%clk 0:02:40]}  dxc4 {[%clk 0:02:35]} 14. bxc4 {[%clk 0:02:39]}  Nf8 {[%clk 0:02:33]} 15. Rfd1 {[%clk 0:02:38]}  Bc6 {[%clk 0:02:28]} 16. Bh3 {[%clk 0:02:35]}  Ng6 {[%clk 0:02:26]} 17. Ne1 {[%clk 0:02:34]}  Rd7 {[%clk 0:02:22]} 18. f4 {[%clk 0:02:29]}  Rcd8 {[%clk 0:02:21]} 19. Rb1 {[%clk 0:02:23]}  Ba8 {[%clk 0:02:17]} 20. Bc3 {[%clk 0:02:19]}  Ne8 {[%clk 0:02:12]} 21. e4 {[%clk 0:02:06]}  Bf6 {[%clk 0:02:09]} 22. e5 {[%clk 0:02:06]}  Be7 {[%clk 0:02:09]} 23. f5 {[%clk 0:02:06]}  exf5 {[%clk 0:02:06]} 24. Bxf5 {[%clk 0:02:06]}  Rd4 {[%clk 0:02:01]} 25. Bxd4 {[%clk 0:02:04]}  Rxd4 {[%clk 0:02:02]} 26. Ndf3 {[%clk 0:02:00]}  Rd8 {[%clk 0:02:02]} 27. Be4 {[%clk 0:01:49]}  Bxe4 {[%clk 0:01:55]} 28. Qxe4 {[%clk 0:01:50]}  Qc8 {[%clk 0:01:55]} 29. Ng2 {[%clk 0:01:48]}  Nc7 {[%clk 0:01:55]} 30. Nf4 {[%clk 0:01:47]}  Nxf4 {[%clk 0:01:55]} 31. gxf4 {[%clk 0:01:48]}  Ne6 {[%clk 0:01:56]} 32. f5 {[%clk 0:01:06]}  Nd4 {[%clk 0:01:54]} 33. Nxd4 {[%clk 0:01:07]}  Rxd4 {[%clk 0:01:55]} 34. Qf3 {[%clk 0:01:07]}  Bg5 {[%clk 0:01:51]} 35. Rf1 {[%clk 0:00:53]}  h6 {[%clk 0:01:45]} 36. Rbe1 {[%clk 0:00:42]}  Rf4 {[%clk 0:01:39]} 37. Qh3 {[%clk 0:00:35]}  Rh4 {[%clk 0:01:34]} 38. Qg3 {[%clk 0:00:21]}  Qd8 {[%clk 0:01:31]} 39. e6 {[%clk 0:00:18]}  fxe6 {[%clk 0:01:26]} 40. fxe6 {[%clk 0:00:19]}  h5 {[%clk 0:01:07]} 41. Kh1 {[%clk 0:00:14]}  Rg4 {[%clk 0:01:06]} 42. Qf3 {[%clk 0:00:13]}  Kh7 {[%clk 0:00:56]} 43. Qf5+ {[%clk 0:00:12]}  Kh6 {[%clk 0:00:54]} 44. Qd5 {[%clk 0:00:10]}  Qe8 {[%clk 0:00:51]} 45. Rg1 {[%clk 0:00:10]}  Bf6 {[%clk 0:00:44]} 46. Rxg4 {[%clk 0:00:10]}  hxg4 {[%clk 0:00:45]} 47. Qe4 {[%clk 0:00:09]}  Kh5 {[%clk 0:00:42]} 48. e7 {[%clk 0:00:08]}  Kh6 {[%clk 0:00:38]} 49. Qxg4 {[%clk 0:00:08]}  Qa8+ {[%clk 0:00:33]} 50. Qe4 {[%clk 0:00:08]}  Qe8 {[%clk 0:00:34]} 51. Re2 {[%clk 0:00:08]}  g5 {[%clk 0:00:34]} 52. Rf2 {[%clk 0:00:08]}  Kg7 {[%clk 0:00:35]} 53. Re2 {[%clk 0:00:07]}  Kf7 {[%clk 0:00:32]} 54. Kg2 {[%clk 0:00:08]}  Kg7 {[%clk 0:00:32]} 55. Kf3 {[%clk 0:00:08]}  Qh5+ {[%clk 0:00:32]} 56. Kg2 {[%clk 0:00:08]}  Qe8 {[%clk 0:00:32]} 57. h3 {[%clk 0:00:09]}  Kg8 {[%clk 0:00:31]} 58. Qe6+ {[%clk 0:00:08]}  Kg7 {[%clk 0:00:32]} 59. Rf2 {[%clk 0:00:08]}  Qa8+ {[%clk 0:00:21]} 60. Rf3 {[%clk 0:00:07]} 1-0

[Event "December 12 Late 2023"]
[Site "https://www.chess.com"]
[Date "2023.12.12"]
[Round "2"]
[White "Atakhan, Abtin"]
[Black "ChessSG1"]
[Result "1-0"]
[Board "53"]
[TimeControl "180+1"]
[WhiteFideId "22502203"]
[WhiteElo "2758"]
[BlackElo "2496"]
[WhiteTeam "IRI"]
[WhiteClock "0:00:58"]
[BlackClock "0:00:03"]

1. c4 {[%clk 0:03:00]}  e6 {[%clk 0:02:58]} 2. Nc3 {[%clk 0:03:00]}  d5 {[%clk 0:02:58]} 3. d4 {[%clk 0:03:01]}  Nf6 {[%clk 0:02:59]} 4. cxd5 {[%clk 0:03:01]}  exd5 {[%clk 0:02:59]} 5. Bg5 {[%clk 0:03:02]}  c6 {[%clk 0:03:00]} 6. e3 {[%clk 0:03:02]}  Bd6 {[%clk 0:02:58]} 7. Bd3 {[%clk 0:03:01]}  O-O {[%clk 0:02:59]} 8. Nf3 {[%clk 0:03:02]}  Re8 {[%clk 0:02:54]} 9. Qc2 {[%clk 0:03:02]}  h6 {[%clk 0:02:54]} 10. Bh4 {[%clk 0:03:02]}  Be6 {[%clk 0:02:55]} 11. Ne5 {[%clk 0:02:59]}  c5 {[%clk 0:02:54]} 12. O-O {[%clk 0:02:49]}  Nc6 {[%clk 0:02:53]} 13. Nxc6 {[%clk 0:02:46]}  bxc6 {[%clk 0:02:54]} 14. dxc5 {[%clk 0:02:47]}  Bxc5 {[%clk 0:02:51]} 15. Na4 {[%clk 0:02:43]}  Bd6 {[%clk 0:02:37]} 16. Bg3 {[%clk 0:02:43]}  Bxg3 {[%clk 0:02:17]} 17. hxg3 {[%clk 0:02:44]}  Rc8 {[%clk 0:02:17]} 18. Nc5 {[%clk 0:02:41]}  Qb6 {[%clk 0:01:57]} 19. Rfc1 {[%clk 0:02:31]}  Bg4 {[%clk 0:01:47]} 20. Qc3 {[%clk 0:02:26]}  Nd7 {[%clk 0:01:31]} 21. Qd4 {[%clk 0:02:24]}  Ne5 {[%clk 0:01:16]} 22. Rc2 {[%clk 0:02:08]}  Rb8 {[%clk 0:01:07]} 23. Rac1 {[%clk 0:02:01]}  Nxd3 {[%clk 0:00:51]} 24. Qxd3 {[%clk 0:01:57]}  Bh5 {[%clk 0:00:48]} 25. Qd4 {[%clk 0:01:53]}  Bg6 {[%clk 0:00:46]} 26. Rd2 {[%clk 0:01:50]}  Qa5 {[%clk 0:00:36]} 27. b3 {[%clk 0:01:45]}  Be4 {[%clk 0:00:31]} 28. Na4 {[%clk 0:01:33]}  Rb4 {[%clk 0:00:29]} 29. Qc3 {[%clk 0:01:30]}  Reb8 {[%clk 0:00:20]} 30. Rd4 {[%clk 0:01:25]}  Qb5 {[%clk 0:00:09]} 31. Rxb4 {[%clk 0:01:22]}  Qxb4 {[%clk 0:00:10]} 32. Qxb4 {[%clk 0:01:23]}  Rxb4 {[%clk 0:00:10]} 33. Rxc6 {[%clk 0:01:24]}  Kh7 {[%clk 0:00:10]} 34. Rc7 {[%clk 0:01:18]}  Bb1 {[%clk 0:00:05]} 35. Nc3 {[%clk 0:01:17]}  Bg6 {[%clk 0:00:04]} 36. Nxd5 {[%clk 0:01:15]}  Rb5 {[%clk 0:00:04]} 37. Nc3 {[%clk 0:01:14]}  Ra5 {[%clk 0:00:02]} 38. f3 {[%clk 0:01:10]}  h5 {[%clk 0:00:02]} 39. e4 {[%clk 0:01:10]}  Kh6 {[%clk 0:00:03]} 40. Kf2 {[%clk 0:01:10]}  Kg5 {[%clk 0:00:03]} 41. Rd7 {[%clk 0:01:05]}  Kh6 {[%clk 0:00:02]} 42. Rd5 {[%clk 0:01:04]}  Ra6 {[%clk 0:00:02]} 43. Rc5 {[%clk 0:01:04]}  Rd6 {[%clk 0:00:03]} 44. Nd5 {[%clk 0:01:04]}  f6 {[%clk 0:00:02]} 45. a4 {[%clk 0:01:03]}  Bf7 {[%clk 0:00:02]} 46. b4 {[%clk 0:01:03]}  f5 {[%clk 0:00:03]} 47. Nc3 {[%clk 0:01:00]}  fxe4 {[%clk 0:00:03]} 48. Nxe4 {[%clk 0:01:00]}  Rd4 {[%clk 0:00:03]} 49. Rc6+ {[%clk 0:00:59]}  Kh7 {[%clk 0:00:03]} 50. Ng5+ {[%clk 0:00:58]}  Kg8 {[%clk 0:00:03]} 51. Rc8+ {[%clk 0:00:58]} 1-0